fUST/lending_fUST_20251208
["ID","MTS","AMOUNT","RATE_DAILY","PERIOD"]
[397048418,1765143051967,-1000.0,0.00013821,2]
[397048420,1765143051976,-1000.0,0.00013821,2]
[397048422,1765143051986,-232.38281062,0.00013821,2]
[397048424,1765143051995,-1000.0,0.00013821,2]
[397048425,1765143052004,-1000.0,0.00013821,2]
[397048427,1765143052014,-1000.0,0.00013821,2]
[397048430,1765143052023,-1000.0,0.00013821,2]
[397048432,1765143052033,-915.80171263,0.00013821,2]
[397048434,1765143052042,-560.35775812,0.00013836,2]
[397048436,1765143052051,-500.0,0.00013937,2]
[397048438,1765143052062,-500.0,0.00013972,2]
[397048440,1765143052071,-500.0,0.00013973,2]
[397048442,1765143052080,-200.0,0.00013973,2]
[397048444,1765143052090,-163.07605335,0.00013973,2]
[397048446,1765143052100,-600.0,0.00014128,2]
[397048448,1765143052110,-151.0,0.00014137,2]
[397048450,1765143052119,-188.14309544,0.00014146,21]
[397048452,1765143052128,-600.0,0.0001421,2]
[397048454,1765143052137,-500.0,0.00014211,2]
[397048456,1765143052146,-600.0,0.00014221,2]
[397048458,1765143052155,-500.0,0.00014243,2]
[397048460,1765143052164,-160.0,0.00014246,2]
[397048462,1765143052173,-200.0,0.00014246,2]
[397048464,1765143052182,-200.0,0.00014246,2]
[397048466,1765143052190,-500.0,0.00014246,2]
[397048468,1765143052200,-500.0,0.00014247,2]
[397048470,1765143052209,-1000.0,0.00014247,2]
[397048472,1765143052218,-1000.0,0.00014247,2]
[397048474,1765143052227,-1000.0,0.00014247,2]
[397048476,1765143052235,-1000.0,0.00014247,2]
[397048478,1765143052244,-1000.0,0.00014247,2]
[397048480,1765143052253,-1000.0,0.00014247,2]
[397048482,1765143052264,-1000.0,0.00014247,2]
[397048484,1765143052273,-1000.0,0.00014247,2]
[397048486,1765143052282,-1000.0,0.00014247,2]
[397048488,1765143052291,-1002.69934759,0.00014247,2]
[397048490,1765143052300,-1000.0,0.00014247,2]
[397048491,1765143052309,-1000.0,0.00014247,2]
[397048494,1765143052318,-1000.0,0.00014247,2]
[397048495,1765143052328,-685.74987562,0.00014247,2]
[397048498,1765143052337,-1000.0,0.00014247,2]
[397048500,1765143052347,-705.87626236,0.00014247,2]
[397048501,1765143052356,-1000.0,0.00014247,2]
[397048504,1765143052366,-1000.0,0.00014247,2]
[397048506,1765143052375,-1000.0,0.00014247,2]
[397048508,1765143052384,-1000.0,0.00014247,2]
[397048509,1765143052392,-1000.0,0.00014247,2]
[397048511,1765143052402,-1000.0,0.00014247,2]
[397048513,1765143052411,-1000.0,0.00014247,2]
[397048516,1765143052421,-1000.0,0.00014247,2]
[397048518,1765143052430,-1000.0,0.00014247,2]
[397048519,1765143052440,-1000.0,0.00014247,2]
[397048522,1765143052449,-291.66254115,0.00014247,2]
[397048523,1765143052458,-1000.0,0.00014247,2]
[397048524,1765143052468,-1000.0,0.00014247,2]
[397048525,1765143052478,-1000.0,0.00014247,2]
[397048526,1765143052488,-1000.0,0.00014247,2]
[397048527,1765143052498,-501.04058283,0.00014247,2]
[397048544,1765143052663,-1000.0,0.00014247,2]
[397048546,1765143052674,-1000.0,0.00014247,2]
[397048548,1765143052683,-1000.0,0.00014247,2]
[397048550,1765143052693,-1000.0,0.00014247,2]
[397048552,1765143052702,-1000.0,0.00014247,2]
[397048554,1765143052711,-1003.49949428,0.00014247,2]
[397048556,1765143052720,-1000.0,0.00014247,2]
[397048558,1765143052729,-1000.0,0.00014247,2]
[397048560,1765143052738,-537.87881148,0.00014247,2]
[397048562,1765143052747,-1000.0,0.00014247,2]
[397048564,1765143052757,-1000.0,0.00014247,2]
[397048566,1765143052767,-194.49096899,0.00014247,2]
[397048568,1765143052776,-1000.0,0.00014247,2]
[397048570,1765143052785,-335.76632401,0.00014247,2]
[397048572,1765143052793,-1000.0,0.00014247,2]
[397048574,1765143052803,-815.72886498,0.00014247,2]
[397048576,1765143052812,-1000.0,0.00014247,2]
[397048578,1765143052821,-1000.0,0.00014247,2]
[397048580,1765143052830,-1000.0,0.00014247,2]
[397048582,1765143052840,-1000.0,0.00014247,2]
[397048584,1765143052850,-908.21840133,0.00014247,2]
[397048586,1765143052861,-1000.0,0.00014247,2]
[397048588,1765143052870,-1000.0,0.00014247,2]
[397048590,1765143052879,-247.33933845,0.00014247,2]
[397048592,1765143052888,-1000.0,0.00014247,2]
[397048595,1765143052899,-1001.65002093,0.00014247,2]
[397048597,1765143052908,-1000.0,0.00014247,2]
[397048599,1765143052918,-221.86843045,0.00014247,2]
[397048601,1765143052927,-1000.0,0.00014247,2]
[397048603,1765143052936,-676.48062855,0.00014247,2]
[397048605,1765143052945,-1000.0,0.00014247,2]
[397048607,1765143052954,-764.4040379,0.00014247,2]
[397048609,1765143052964,-1000.0,0.00014247,2]
[397048611,1765143052973,-1000.0,0.00014247,2]
[397048613,1765143052982,-1000.0,0.00014247,2]
[397048615,1765143052991,-1000.0,0.00014247,2]
[397048617,1765143053001,-1000.0,0.00014247,2]
[397048619,1765143053010,-307.45313396,0.00014247,2]
[397048621,1765143053021,-1000.0,0.00014247,2]
[397048623,1765143053031,-1000.0,0.00014247,2]
[397048625,1765143053041,-1000.0,0.00014247,2]
[397048627,1765143053050,-1095.81404308,0.00014247,2]
[397048629,1765143053060,-1000.0,0.00014247,2]
[397048631,1765143053070,-1000.0,0.00014247,2]
[397048633,1765143053080,-1000.0,0.00014247,2]
[397048635,1765143053090,-1000.0,0.00014247,2]
[397048637,1765143053100,-200.0,0.00014247,2]
[397048639,1765143053109,-260.0,0.00014247,2]
[397048641,1765143053119,-316.09477324,0.00014297,2]
[397048643,1765143053129,-200.0,0.00014297,2]
[397048645,1765143053138,-100000.0,0.00014298,2]
[397048647,1765143053147,-844.4,0.0001436,2]
[397048649,1765143053158,-200.0,0.00014367,2]
[397048651,1765143053167,-1500.0,0.00014368,2]
[397048653,1765143053177,-1500.0,0.00014368,2]
[397048655,1765143053186,-1500.0,0.00014368,2]
[397048657,1765143053195,-1604.19505804,0.00014368,2]
[397048659,1765143053205,-1500.0,0.00014368,2]
[397048661,1765143053215,-1500.0,0.00014368,2]
[397048663,1765143053225,-1500.0,0.00014368,2]
[397048665,1765143053235,-1500.0,0.00014368,2]
[397048667,1765143053244,-1500.0,0.00014368,2]
[397048669,1765143053254,-1500.0,0.00014368,2]
[397048671,1765143053263,-1500.0,0.00014368,2]
[397048673,1765143053272,-1500.0,0.00014368,2]
[397048675,1765143053281,-1500.0,0.00014368,2]
[397048677,1765143053290,-1500.0,0.00014368,2]
[397048679,1765143053300,-1500.0,0.00014368,2]
[397048681,1765143053309,-1005.41896052,0.00014368,2]
[397048683,1765143053318,-1500.0,0.00014368,2]
[397048685,1765143053329,-1500.0,0.00014368,2]
[397048687,1765143053338,-1500.0,0.00014368,2]
[397048689,1765143053348,-1500.0,0.00014368,2]
[397048691,1765143053357,-1502.34575237,0.00014368,2]
[397048693,1765143053366,-1500.0,0.00014368,2]
[397048695,1765143053375,-1500.0,0.00014368,2]
[397048697,1765143053384,-1500.0,0.00014368,2]
[397048699,1765143053393,-1500.0,0.00014368,2]
[397048701,1765143053402,-1500.0,0.00014368,2]
[397048703,1765143053412,-1500.0,0.00014368,2]
[397048705,1765143053421,-1500.0,0.00014368,2]
[397048707,1765143053431,-1500.0,0.00014368,2]
[397048709,1765143053441,-164.76645619,0.00014368,2]
[397048711,1765143053450,-1500.0,0.00014368,2]
[397048713,1765143053459,-1500.0,0.00014368,2]
[397048715,1765143053468,-1500.0,0.00014368,2]
[397048717,1765143053477,-1632.85212056,0.00014368,2]
[397048719,1765143053487,-1500.0,0.00014368,2]
[397048721,1765143053497,-1500.0,0.00014368,2]
[397048723,1765143053507,-1500.0,0.00014368,2]
[397048726,1765143053516,-1319.11030493,0.00014368,2]
[397048727,1765143053526,-1500.0,0.00014368,2]
[397048730,1765143053536,-1500.0,0.00014368,2]
[397048731,1765143053545,-1500.0,0.00014368,2]
[397048733,1765143053555,-1500.0,0.00014368,2]
[397048736,1765143053565,-1500.0,0.00014368,2]
[397048738,1765143053574,-492.87191024,0.00014414,2]
[397048740,1765143053584,-293.85068442,0.00014464,2]
[397048742,1765143053596,-1000.0,0.00014505,2]
[397048743,1765143053605,-500.0,0.0001452,2]
[397048746,1765143053614,-500.0,0.00014521,2]
[397048748,1765143053624,-400.0,0.00014521,2]
[397048750,1765143053635,-212.0,0.00014521,3]
[397048752,1765143053644,-600.0,0.00014535,2]
[397048753,1765143053653,-600.0,0.00014559,2]
[397048756,1765143053663,-500.0,0.00014591,2]
[397048757,1765143053672,-192.3467429,0.0001463,2]
[397048760,1765143053681,-500.0,0.00014661,2]
[397048762,1765143053691,-500.0,0.00014664,2]
[397048764,1765143053700,-600.0,0.00014679,2]
[397048766,1765143053710,-151.0,0.00014685,2]
[397048768,1765143053719,-600.0,0.000147,2]
[397048769,1765143053728,-500.0,0.00014728,2]
[397048770,1765143053739,-600.0,0.00014759,2]
[397048771,1765143053748,-900.0,0.00014768,2]
[397048772,1765143053757,-600.0,0.00014778,2]
[397048773,1765143053767,-200.0,0.00014794,2]
[397048774,1765143053776,-500.0,0.00014794,2]
[397048775,1765143053787,-500.0,0.00014795,2]
[397048776,1765143053796,-1500.0,0.00014795,2]
[397048777,1765143053805,-1017.06539799,0.00014795,2]
[397048778,1765143053815,-939.39416691,0.00014795,2]
[397048779,1765143053824,-1500.0,0.00014795,2]
[397048780,1765143053834,-1500.0,0.00014795,2]
[397048781,1765143053844,-1500.0,0.00014795,2]
[397048782,1765143053853,-1500.0,0.00014795,2]
[397048783,1765143053862,-1003.02459592,0.00014795,2]
[397048784,1765143053871,-1500.0,0.00014795,2]
[397048785,1765143053881,-1500.0,0.00014795,2]
[397048786,1765143053890,-1071.31364391,0.00014795,2]
[397048787,1765143053900,-1500.0,0.00014795,2]
[397048788,1765143053909,-1500.0,0.00014795,2]
[397048789,1765143053919,-1239.13073334,0.00014795,2]
[397048790,1765143053928,-1500.0,0.00014795,2]
[397048791,1765143053938,-522.32677014,0.00014795,2]
[397048792,1765143053948,-1500.0,0.00014795,2]
[397048793,1765143053957,-1500.0,0.00014795,2]
[397048794,1765143053966,-1500.0,0.00014795,2]
[397048795,1765143053976,-180.217607,0.00014795,2]
[397048796,1765143053985,-1500.0,0.00014795,2]
[397048797,1765143053994,-202.10886961,0.00014795,2]
[397048799,1765143054003,-1500.0,0.00014795,2]
[397048801,1765143054012,-1500.0,0.00014795,2]
[397048803,1765143054021,-1500.0,0.00014795,2]
[397048805,1765143054031,-1500.0,0.00014795,2]
[397048807,1765143054041,-1500.0,0.00014795,2]
[397048809,1765143054051,-1500.0,0.00014795,2]
[397048811,1765143054060,-1500.0,0.00014795,2]
[397048813,1765143054070,-1500.0,0.00014795,2]
[397048815,1765143054080,-1500.0,0.00014795,2]
[397048817,1765143054090,-1500.0,0.00014795,2]
[397048819,1765143054100,-1500.0,0.00014795,2]
[397048821,1765143054110,-1500.0,0.00014795,2]
[397048823,1765143054119,-1500.0,0.00014795,2]
[397048825,1765143054129,-1596.87733311,0.00014795,2]
[397048827,1765143054138,-1500.0,0.00014795,2]
[397048829,1765143054148,-1500.0,0.00014795,2]
[397048831,1765143054157,-1500.0,0.00014795,2]
[397048833,1765143054166,-863.84516755,0.00014795,2]
[397048835,1765143054176,-1149.25266288,0.00014795,2]
[397048837,1765143054186,-1500.0,0.00014795,2]
[397048839,1765143054196,-1500.0,0.00014795,2]
[397048841,1765143054205,-1500.0,0.00014795,2]
[397048843,1765143054215,-184.12300584,0.00014795,2]
[397048845,1765143054224,-1500.0,0.00014795,2]
[397048847,1765143054234,-1500.0,0.00014795,2]
[397048849,1765143054244,-1500.0,0.00014795,2]
[397048851,1765143054254,-1500.0,0.00014795,2]
[397048853,1765143054263,-1500.0,0.00014795,2]
[397048855,1765143054272,-1500.0,0.00014795,2]
[397048857,1765143054282,-1500.0,0.00014795,2]
[397048859,1765143054292,-1500.0,0.00014795,2]
[397048861,1765143054302,-1500.0,0.00014795,2]
[397048863,1765143054311,-1134.43757114,0.00014795,2]
[397048865,1765143054320,-1500.0,0.00014795,2]
[397048867,1765143054330,-1500.0,0.00014795,2]
[397048869,1765143054340,-1500.0,0.00014795,2]
[397048871,1765143054349,-1500.0,0.00014795,2]
[397048873,1765143054358,-1500.0,0.00014795,2]
[397048875,1765143054368,-207.4,0.00014795,2]
[397048877,1765143054376,-360.0,0.00014795,2]
[397048879,1765143054386,-154.0,0.000149,2]
[397048881,1765143054395,-592.50224149,0.000149,2]
[397048883,1765143054404,-200.0,0.00014915,2]
[397048885,1765143054414,-2000.0,0.00014916,2]
[397048887,1765143054424,-1185.74432042,0.00014916,2]
[397048889,1765143054433,-2000.0,0.00014916,2]
[397048891,1765143054442,-2000.0,0.00014916,2]
[397048893,1765143054451,-2000.0,0.00014916,2]
[397048895,1765143054460,-2000.0,0.00014916,2]
[397048897,1765143054470,-2000.0,0.00014916,2]
[397048899,1765143054480,-2000.0,0.00014916,2]
[397048901,1765143054490,-2000.0,0.00014916,2]
[397048903,1765143054500,-493.94636234,0.00014916,2]
[397048905,1765143054509,-2000.0,0.00014916,2]
[397048907,1765143054519,-2000.0,0.00014916,2]
[397048909,1765143054529,-2000.0,0.00014916,2]
[397048911,1765143054538,-1689.27176195,0.00014916,2]
[397048913,1765143054547,-1596.36457626,0.00014916,2]
[397048915,1765143054557,-2000.0,0.00014916,2]
[397048917,1765143054566,-2000.0,0.00014916,2]
[397048919,1765143054576,-2000.0,0.00014916,2]
[397048921,1765143054586,-895.96442305,0.00014916,2]
[397048923,1765143054598,-2000.0,0.00014916,2]
[397048925,1765143054607,-2000.0,0.00014916,2]
[397048927,1765143054617,-2000.0,0.00014916,2]
[397048929,1765143054627,-1005.77235045,0.00014916,2]
[397048931,1765143054637,-550.12990017,0.00014916,2]
[397048933,1765143054647,-2018.24103369,0.00014916,2]
[397048935,1765143054657,-2000.0,0.00014916,2]
[397048937,1765143054669,-1126.29150045,0.00014916,2]
[397048939,1765143054679,-2000.0,0.00014916,2]
[397048941,1765143054688,-2000.0,0.00014916,2]
[397048943,1765143054698,-1705.18607344,0.00014916,2]
[397048945,1765143054707,-2000.0,0.00014916,2]
[397048947,1765143054716,-2000.0,0.00014916,2]
[397048949,1765143054726,-2000.0,0.00014916,2]
[397048951,1765143054736,-2000.0,0.00014916,2]
[397048953,1765143054747,-1685.0399037,0.00014916,2]
[397048955,1765143054756,-2000.0,0.00014916,2]
[397048957,1765143054769,-2000.0,0.00014916,2]
[397048959,1765143054778,-500.0,0.00014925,2]
[397048960,1765143054787,-384.6300278,0.00014959,2]
[397048962,1765143054797,-10000.0,0.0001499,2]
[397048964,1765143054807,-200.0,0.00014999,2]
[397048967,1765143054817,-756.46145613,0.00015,2]
[397048968,1765143054827,-1014.67690496,0.00015,2]
[397048970,1765143054836,-9850.0,0.00015,2]
[397048972,1765143054846,-947.0,0.00015,2]
[397048974,1765143054855,-1000.77,0.00015,2]
[397048976,1765143054865,-166.00096392,0.00015,10]
[397048978,1765143054875,-188.34,0.00015,3]
[397048980,1765143054884,-432.0,0.00015,2]
[397048982,1765143054893,-582.79190884,0.00015,10]
[397048984,1765143054903,-174479.20254158,0.00015,7]
[397048986,1765143054912,-22246.35103886,0.00015,2]
[397048988,1765143054921,-600.0,0.00015046,2]
[397048990,1765143054931,-500.0,0.0001506,2]
[397048992,1765143054940,-576.26953823,0.00015068,2]
[397048994,1765143054949,-500.0,0.00015068,2]
[397048996,1765143054959,-600.0,0.00015068,2]
[397048998,1765143054968,-710.564204,0.00015068,2]
[397049000,1765143054979,-800.0,0.00015068,2]
[397049002,1765143054988,-160.84172371,0.0001508,5]
[397049004,1765143054997,-500.0,0.00015084,2]
[397049005,1765143055006,-272.68331331,0.0001515,20]
[397049021,1765143055154,-600.0,0.00015156,2]
[397049024,1765143055164,-500.0,0.00015162,2]
[397049026,1765143055174,-600.0,0.00015178,2]
[397049027,1765143055184,-500.0,0.00015215,2]
[397049029,1765143055193,-600.0,0.00015227,2]
[397049031,1765143055202,-500.0,0.00015227,2]
[397049033,1765143055212,-151.0,0.00015233,2]
[397049035,1765143055221,-460.56443892,0.00015249,2]
[397049037,1765143055229,-600.0,0.00015251,2]
[397049039,1765143055239,-600.0,0.00015294,2]
[397049041,1765143055249,-500.0,0.00015299,2]
[397049043,1765143055258,-1200.0,0.00015316,2]
[397049045,1765143055269,-200.0,0.00015341,2]
[397049047,1765143055278,-460.0,0.00015342,2]
[397049049,1765143055287,-500.0,0.00015342,2]
[397049051,1765143055296,-1589.04163979,0.00015342,2]
[397049053,1765143055306,-2000.0,0.00015342,2]
[397049055,1765143055315,-1106.39047892,0.00015342,2]
[397049057,1765143055325,-2000.0,0.00015342,2]
[397049059,1765143055334,-2000.0,0.00015342,2]
[397049061,1765143055343,-171.48138631,0.00015342,2]
[397049063,1765143055352,-2000.0,0.00015342,2]
[397049065,1765143055362,-1004.40605033,0.00015342,2]
[397049067,1765143055372,-2000.0,0.00015342,2]
[397049069,1765143055381,-2000.0,0.00015342,2]
[397049071,1765143055390,-2000.0,0.00015342,2]
[397049073,1765143055400,-454.89141196,0.00015342,2]
[397049075,1765143055409,-991.62612912,0.00015342,2]
[397049077,1765143055418,-2000.0,0.00015342,2]
[397049079,1765143055427,-2000.0,0.00015342,2]
[397049081,1765143055437,-2000.0,0.00015342,2]
[397049083,1765143055446,-1620.37874453,0.00015342,2]
[397049085,1765143055455,-2000.0,0.00015342,2]
[397049087,1765143055465,-2000.0,0.00015342,2]
[397049089,1765143055474,-2000.0,0.00015342,2]
[397049091,1765143055483,-2000.0,0.00015342,2]
[397049093,1765143055492,-2000.0,0.00015342,2]
[397049095,1765143055502,-1059.3433507,0.00015342,2]
[397049097,1765143055512,-1503.96082907,0.00015342,2]
[397049099,1765143055522,-625.36809778,0.00015342,2]
[397049101,1765143055532,-2000.0,0.00015342,2]
[397049103,1765143055543,-280.96628906,0.00015342,2]
[397049105,1765143055552,-2000.0,0.00015342,2]
[397049107,1765143055562,-2000.0,0.00015342,2]
[397049109,1765143055571,-1938.95313364,0.00015342,2]
[397049160,1765143056072,-61.04686636,0.00015342,2]
[397049162,1765143056081,-2000.0,0.00015342,2]
[397049164,1765143056091,-2000.0,0.00015342,2]
[397049166,1765143056100,-905.39532425,0.00015342,2]
[397049167,1765143056108,-913.5782963,0.00015342,2]
[397049168,1765143056118,-2000.0,0.00015342,2]
[397049170,1765143056127,-2000.0,0.00015342,2]
[397049172,1765143056136,-2000.0,0.00015342,2]
[397049174,1765143056145,-2000.0,0.00015342,2]
[397049176,1765143056155,-658.96015363,0.00015342,2]
[397049178,1765143056165,-2000.0,0.00015342,2]
[397049180,1765143056175,-2000.0,0.00015342,2]
[397049182,1765143056184,-2000.0,0.00015342,2]
[397049184,1765143056193,-2000.0,0.00015342,2]
[397049186,1765143056204,-2000.0,0.00015342,2]
[397049188,1765143056213,-2000.0,0.00015342,2]
[397049190,1765143056222,-2000.0,0.00015342,2]
[397049192,1765143056231,-2000.0,0.00015342,2]
[397049194,1765143056241,-153.0,0.00015342,2]
[397049196,1765143056249,-215.0738,0.00015343,2]
[397049198,1765143056258,-500.0,0.00015346,2]
[397049199,1765143056267,-600.0,0.00015356,2]
[397049201,1765143056277,-600.0,0.00015369,2]
[397049203,1765143056286,-338.55757179,0.00015415,28]
[397049205,1765143056295,-458.07378288,0.00015464,2]
[397049207,1765143056304,-2454.35045345,0.00015464,2]
[397049209,1765143056313,-2582.41786053,0.00015464,2]
[397049211,1765143056323,-1195.68772797,0.00015464,2]
[397049213,1765143056332,-2500.0,0.00015464,2]
[397049215,1765143056342,-2500.0,0.00015464,2]
[397049216,1765143056351,-1476.59442189,0.00015464,2]
[397049217,1765143056361,-2500.0,0.00015464,2]
[397049219,1765143056370,-1000.0,0.00015464,2]
[397049221,1765143056380,-1500.0,0.00015464,2]
[397049222,1765143056390,-2500.0,0.00015464,2]
[397049223,1765143056399,-2237.55673982,0.00015464,2]
[397049224,1765143056408,-2500.0,0.00015464,2]
[397049225,1765143056418,-2500.0,0.00015464,2]
[397049226,1765143056427,-2500.0,0.00015464,2]
[397049227,1765143056437,-2500.0,0.00015464,2]
[397049228,1765143056446,-2500.0,0.00015464,2]
[397049229,1765143056456,-2500.0,0.00015464,2]
[397049230,1765143056466,-357.35569762,0.00015464,2]
[397049231,1765143056475,-2500.0,0.00015464,2]
[397049232,1765143056484,-2500.0,0.00015464,2]
[397049233,1765143056494,-1404.23380045,0.00015464,2]
[397049234,1765143056504,-2500.0,0.00015464,2]
[397049235,1765143056513,-230.60973793,0.00015464,2]
[397049236,1765143056523,-2500.0,0.00015464,2]
[397049237,1765143056533,-2500.0,0.00015464,2]
[397049238,1765143056542,-500.0,0.00015497,2]
[397049240,1765143056551,-600.0,0.00015518,2]
[397049242,1765143056560,-330.0,0.0001552,2]
[397049244,1765143056569,-600.0,0.00015545,2]
[397049246,1765143056578,-600.0,0.00015566,2]
[397049247,1765143056591,-475.0,0.00015582,2]
[397049251,1765143056784,-475.0,0.00015582,2]
[397049252,1765143056794,-600.0,0.00015582,2]
[397049253,1765143056804,-500.0,0.00015616,2]
[397049254,1765143056814,-800.0,0.00015616,2]
[397049255,1765143056824,-214.0,0.00015616,3]
[397049256,1765143056832,-600.0,0.0001562,2]
[397049257,1765143056842,-600.0,0.00015627,2]
[397049259,1765143056851,-500.0,0.00015629,2]
[397049261,1765143056860,-475.0,0.0001563,2]
[397049263,1765143056869,-475.0,0.0001563,2]
[397049265,1765143056878,-500.0,0.00015648,2]
[397049267,1765143056887,-600.0,0.00015669,2]
[397049268,1765143056896,-600.0,0.00015693,2]
[397049270,1765143056906,-500.0,0.00015703,2]
[397049272,1765143056915,-600.0,0.00015725,2]
[397049274,1765143056925,-500.0,0.00015749,2]
[397049276,1765143056934,-151.0,0.00015781,2]
[397049278,1765143056943,-192.3467429,0.00015781,2]
[397049280,1765143056953,-192.3467429,0.00015781,2]
[397049282,1765143056963,-192.3467429,0.00015781,2]
[397049284,1765143056972,-192.3467429,0.00015781,2]
[397049286,1765143056982,-192.3467429,0.00015781,2]
[397049288,1765143056991,-192.3467429,0.00015781,2]
[397049290,1765143057001,-192.3467429,0.00015781,2]
[397049292,1765143057010,-192.3467429,0.00015781,2]
[397049294,1765143057020,-192.3467429,0.00015781,2]
[397049296,1765143057030,-192.3467429,0.00015781,2]
[397049298,1765143057041,-192.3467429,0.00015781,2]
[397049301,1765143057051,-192.3467429,0.00015781,2]
[397049303,1765143057060,-192.3467429,0.00015781,2]
[397049305,1765143057070,-192.3866688,0.00015781,2]
[397049306,1765143057080,-384.1765663,0.00015781,2]
[397049308,1765143057089,-192.3467429,0.00015781,2]
[397049310,1765143057099,-192.3467429,0.00015781,2]
[397049312,1765143057108,-192.3467429,0.00015781,2]
[397049314,1765143057118,-192.3467429,0.00015781,2]
[397049317,1765143057128,-192.3467429,0.00015781,2]
[397049318,1765143057138,-192.3467429,0.00015781,2]
[397049320,1765143057147,-192.3467429,0.00015781,2]
[397049321,1765143057156,-192.3467429,0.00015781,2]
[397049322,1765143057166,-192.3467429,0.00015781,2]
[397049324,1765143057175,-192.3467429,0.00015781,2]
[397049326,1765143057185,-192.3467429,0.00015781,2]
[397049328,1765143057194,-192.3467429,0.00015781,2]
[397049330,1765143057203,-192.3467429,0.00015781,2]
[397049332,1765143057212,-192.3467429,0.00015781,2]
[397049334,1765143057222,-192.3467429,0.00015781,2]
[397049337,1765143057231,-192.3467429,0.00015781,2]
[397049339,1765143057242,-192.3467429,0.00015781,2]
[397049341,1765143057251,-192.3467429,0.00015781,2]
[397049343,1765143057261,-192.3467429,0.00015781,2]
[397049344,1765143057270,-192.3866688,0.00015781,2]
[397049347,1765143057279,-192.3467429,0.00015781,2]
[397049348,1765143057289,-192.3467429,0.00015781,2]
[397049351,1765143057299,-195.8602205,0.00015781,2]
[397049352,1765143057308,-192.3467429,0.00015781,2]
[397049355,1765143057318,-193.6982271,0.00015781,2]
[397049357,1765143057328,-192.3467429,0.00015781,2]
[397049359,1765143057338,-192.3467429,0.00015781,2]
[397049361,1765143057347,-192.3467429,0.00015781,2]
[397049363,1765143057356,-192.3467429,0.00015781,2]
[397049365,1765143057366,-192.3467429,0.00015781,2]
[397049366,1765143057375,-156.26616321,0.000158,2]
[397049368,1765143057385,-1139.87371635,0.000158,2]
[397049371,1765143057396,-600.0,0.00015801,2]
[397049373,1765143057405,-475.0,0.00015824,2]
[397049375,1765143057415,-475.0,0.00015824,2]
[397049377,1765143057424,-475.0,0.00015824,2]
[397049379,1765143057434,-475.0,0.00015824,2]
[397049381,1765143057443,-475.0,0.00015824,2]
[397049383,1765143057453,-475.0,0.00015824,2]
[397049384,1765143057462,-600.0,0.0001586,2]
[397049386,1765143057471,-1500.0,0.00015864,2]
[397049388,1765143057481,-500.0,0.0001589,2]
[397049390,1765143057492,-560.0,0.0001589,2]
[397049392,1765143057502,-500.0,0.0001589,2]
[397049394,1765143057511,-2500.0,0.0001589,2]
[397049396,1765143057521,-2500.0,0.0001589,2]
[397049399,1765143057531,-1514.99738674,0.0001589,2]
[397049401,1765143057540,-2500.0,0.0001589,2]
[397049402,1765143057549,-1633.47627392,0.0001589,2]
[397049405,1765143057559,-950.27643567,0.0001589,2]
[397049407,1765143057568,-502.08567091,0.0001589,2]
[397049424,1765143057746,-471.7304,0.00013699,2]
[397049426,1765143057755,-331.4829686,0.0001589,2]
[397049447,1765143057934,-372.44538168,0.0001589,2]
[397049460,1765143058051,-448.59831183,0.0001589,2]
[397049462,1765143058062,-640.06033769,0.0001589,2]
[397049464,1765143058072,-2500.0,0.0001589,2]
[397049466,1765143058082,-992.30422679,0.0001589,2]
[397049468,1765143058091,-1449.78664251,0.0001589,2]
[397049470,1765143058101,-1645.39991367,0.0001589,2]
[397049472,1765143058110,-2102.46887041,0.0001589,2]
[397049475,1765143058122,-360.69996,0.0001589,2]
[397050889,1765144037182,-225.0,9.125e-05,2]